fUST/lending_fUST_20250410
["ID","MTS","AMOUNT","RATE_DAILY","PERIOD"]
[357656484,1744282241047,-153.0,0.000162,2]
[357656485,1744282241057,-156.6949557,0.000162,2]
[357656486,1744282241067,-156.6949557,0.000162,2]
[357656487,1744282241077,-213.2113689,0.000162,2]
[357656488,1744282241087,-153.0,0.000162,2]
[357656489,1744282241097,-153.0,0.000162,2]
[357656490,1744282241106,-5143.3639914,0.00016264,2]
[357656491,1744282241116,-684.62193188,0.00016265,2]
[357656492,1744282241126,-154.6032397,0.000163,2]
[357656493,1744282241135,-176.06663849,0.00016365,2]
[357656494,1744282241146,-183.53561751,0.00016365,2]
[357656495,1744282241155,-500.0,0.00016366,2]
[357656496,1744282241165,-500.0,0.00016366,2]
[357656497,1744282241174,-500.0,0.00016366,2]
[357656498,1744282241184,-500.0,0.00016366,2]
[357656499,1744282241193,-500.0,0.00016366,2]
[357656500,1744282241203,-500.0,0.00016366,2]
[357656501,1744282241213,-500.0,0.00016366,2]
[357656502,1744282241223,-500.0,0.00016366,2]
[357656503,1744282241232,-266.0,0.00016366,2]
[357656504,1744282241241,-500.0,0.00016366,2]
[357656505,1744282241250,-500.0,0.00016366,2]
[357656506,1744282241260,-500.0,0.00016366,2]
[357656507,1744282241270,-500.0,0.00016366,2]
[357656508,1744282241281,-500.0,0.00016366,2]
[357656509,1744282241292,-287.34497716,0.00016366,2]
[357656530,1744282241639,-0.00232415,0.00016366,2]
[357656532,1744282241660,-212.65269869,0.00016366,2]
[357656534,1744282241671,-500.0,0.00016366,2]
[357656536,1744282241680,-143.43184579,0.00016366,2]
[357656709,1744282244553,-176.06663849,0.00016365,2]
[357656710,1744282244563,-356.56815421,0.00016366,2]
[357656711,1744282244573,-500.0,0.00016366,2]
[357656712,1744282244584,-500.0,0.00016366,2]
[357656713,1744282244594,-500.0,0.00016366,2]
[357656714,1744282244603,-500.0,0.00016366,2]
[357656715,1744282244613,-559.50011442,0.00016366,2]
[357656716,1744282244624,-310.74,0.00016367,2]
[357656717,1744282244633,-204.90518406,0.00016367,2]
[357656718,1744282244644,-151.0,0.000164,2]
[357656719,1744282244655,-153.0,0.000164,2]
[357656720,1744282244665,-153.0,0.000164,2]
[357656721,1744282244675,-156.6949557,0.000164,2]
[357656722,1744282244684,-153.0,0.000164,2]
[357656723,1744282244694,-156.6949557,0.000164,2]
[357656724,1744282244704,-153.0,0.000164,2]
[357656725,1744282244714,-155.6288775,0.000164,2]
[357656726,1744282244725,-153.0,0.000164,2]
[357656727,1744282244736,-564.3717366,0.000164,2]
[357656728,1744282244746,-153.0,0.000164,2]
[357656729,1744282244756,-246.0,0.000164,2]
[357656730,1744282244766,-500.0,0.00016438,2]
[357656731,1744282244776,-500.72568256,0.00016438,2]
[357656732,1744282244786,-500.0,0.00016438,2]
[357656733,1744282244796,-500.0,0.00016438,2]
[357656734,1744282244805,-898.03,0.00016438,2]
[357656735,1744282244815,-500.0,0.00016438,2]
[357656736,1744282244825,-500.0,0.00016438,2]
[357656737,1744282244835,-549.39430536,0.00016438,2]
[357656738,1744282244844,-500.10575103,0.00016438,2]
[357656739,1744282244854,-500.0,0.00016438,2]
[357656740,1744282244864,-500.0,0.00016438,2]
[357656741,1744282244875,-500.0,0.00016438,2]
[357656742,1744282244885,-500.0,0.00016438,2]
[357656743,1744282244896,-500.0,0.00016438,2]
[357656744,1744282244906,-500.0,0.00016438,2]
[357656745,1744282244916,-500.0,0.00016438,2]
[357656746,1744282244927,-500.0,0.00016438,2]
[357656747,1744282244937,-500.0,0.00016438,2]
[357656748,1744282244947,-500.0,0.00016438,2]
[357656749,1744282244957,-500.0,0.00016438,2]
[357656750,1744282244967,-500.0,0.00016438,2]
[357656751,1744282244977,-292.77491764,0.00016438,2]
[357656773,1744282246774,-176.06663849,0.00016365,2]
[357656774,1744282246784,-207.22508236,0.00016438,2]
[357656775,1744282246793,-500.0,0.00016438,2]
[357656776,1744282246803,-494.45436685,0.00016438,2]
[357656777,1744282246880,-5.54563315,0.00016438,2]
[357656778,1744282246890,-500.0,0.00016438,2]
[357656779,1744282246900,-438.19695935,0.00016438,2]
[357656781,1744282303993,-196.2234246,0.00015218,2]
[357656782,1744282304987,250.0,0.00014919,2]
[357656783,1744282324100,-164.9835011,0.00015217,2]
[357656784,1744282355316,-135.0164989,0.00015217,2]
[357656785,1744282355341,-92.86679164,0.00015217,2]
[357656786,1744282363452,-407.13320836,0.00015217,2]
[357656787,1744282363478,-92.86679164,0.00015217,2]
[357656788,1744282364438,-407.13320836,0.00015217,2]
[357656789,1744282373212,-180.41019164,0.00015217,2]
[357656790,1744282383850,-199.2510479,0.00015216,2]
[357656791,1744282392672,-100.7489521,0.00015216,2]
[357656792,1744282392696,-186.4443479,0.00015217,2]
[357656793,1744282421643,-152.394547,0.00015047,2]
[357656794,1744282434129,1800.0,0.00012428,2]
[357656795,1744282435708,1800.0,0.00013798,2]
[357656796,1744282438199,-155.0,0.00015047,2]
[357656797,1744282443459,-204.0,0.00015047,2]
[357656798,1744282474400,-195.25914762,0.00015046,2]
[357656799,1744282503273,-186.4443479,0.00015045,2]
[357656800,1744282563518,-158.38842396,0.00015046,2]
[357656801,1744282609860,-243.8844498,0.00015045,2]
[357656802,1744282625158,-157.93148628,0.00015044,2]
[357656803,1744282639897,225.2610989,0.0001443,2]
[357656804,1744282682185,-500.0,0.00015045,2]
[357656805,1744282712391,-170.20622126,0.00015044,2]
[357656806,1744282742710,-500.0,0.00015044,2]
[357656807,1744282773439,-300.0,0.00015043,2]
[357656808,1744282773462,-696.09806958,0.00015044,2]
[357656809,1744282803306,-250.0,0.00015043,2]
[357656810,1744282843774,-50.0,0.00015043,2]
[357656811,1744282843798,-250.0,0.00015043,2]
[357656812,1744282863017,99800.0,0.000149,2]
[357656813,1744282939232,-188.05621933,0.00015042,2]
[357656814,1744282953699,-111.94378067,0.00015042,2]
[357656815,1744282953725,-88.05621933,0.00015042,2]
[357656816,1744282984846,-250.0,0.00015042,2]
[357656817,1744282994004,4037.5248222,0.00014439,2]
[357656818,1744283224976,-163.11797211,0.00015039,2]
[357656831,1744283261010,679.6964952,0.00014153,2]
[357656832,1744283320926,-287.92514838,0.00015039,2]
[357656833,1744283344495,-300.0,0.00015038,2]
[357656835,1744283349564,-200.0,0.00015039,2]
[357656839,1744283431880,-300.0,0.00015038,2]
[357656840,1744283431891,-12.07485162,0.00015039,2]
[357656841,1744283431902,-179.86489945,0.00015039,2]
[357656842,1744283431915,-320.13510055,0.00015039,2]
[357656843,1744283431926,-500.0,0.00015039,2]
[357656844,1744283431936,-500.0,0.00015039,2]
[357656845,1744283431946,-257.95074397,0.00015039,2]
[357656846,1744283431956,-500.0,0.00015039,2]
[357656847,1744283431966,-500.0,0.00015039,2]
[357656848,1744283431976,-500.0,0.00015039,2]
[357656849,1744283431987,-500.0,0.00015039,2]
[357656850,1744283431997,-500.0,0.00015039,2]
[357656851,1744283432008,-500.0,0.00015039,2]
[357656852,1744283432018,-500.0,0.00015039,2]
[357656853,1744283432028,-500.0,0.00015039,2]
[357656854,1744283432038,-500.0,0.00015039,2]
[357656855,1744283432048,-500.0,0.00015039,2]
[357656856,1744283432269,-500.0,0.00015039,2]
[357656857,1744283432286,-500.0,0.00015039,2]
[357656858,1744283432296,-500.0,0.00015039,2]
[357656859,1744283432307,-500.0,0.00015039,2]
[357656860,1744283432317,-500.0,0.00015039,2]
[357656861,1744283432327,-500.0,0.00015039,2]
[357656862,1744283432338,-500.0,0.00015039,2]
[357656863,1744283432348,-500.0,0.00015039,2]
[357656864,1744283432358,-500.0,0.00015039,2]
[357656865,1744283432368,-259.1510359,0.00015039,2]
[357656866,1744283432379,-500.0,0.00015039,2]
[357656867,1744283432390,-500.0,0.00015039,2]
[357656868,1744283432400,-500.0,0.00015039,2]
[357656869,1744283432411,-500.0,0.00015039,2]
[357656870,1744283432421,-500.0,0.00015039,2]
[357656871,1744283432431,-500.0,0.00015039,2]
[357656872,1744283432441,-500.0,0.00015039,2]
[357656873,1744283432451,-439.63190467,0.00015039,2]
[357656874,1744283432461,-640.23687822,0.00015039,2]
[357656875,1744283432471,-8443.64104832,0.00015039,2]
[357656876,1744283432482,-200.01128142,0.0001504,2]
[357656877,1744283432491,-9303.90193042,0.00015044,2]
[357656878,1744283432502,-9721.1386173,0.00015047,2]
[357656879,1744283432512,-250.0,0.00015117,2]
[357656880,1744283432522,-1800.0,0.00015168,2]
[357656881,1744283432532,-832.70686939,0.000155,5]
[357656882,1744283432542,-60163.06546356,0.00016066,2]
[357656888,1744283438378,-15666.76950329,0.00016066,2]
[357656889,1744283438399,-25146.83177174,0.00016066,2]
[357656890,1744283438410,-536.8614743,0.00016066,2]
[357656892,1744283440536,-0.00961986,0.00016066,2]
[357656925,1744283607248,1400.0,0.00013524,2]
[357656926,1744283608881,1400.0,0.00014894,2]
[357656927,1744283698876,342.13258077,0.00015,2]
[357656928,1744283781892,9051.4132164,0.00014945,2]
[357656929,1744283846047,1200.0,0.00013498,2]
[357656930,1744283847341,1200.0,0.00014868,2]
[357656933,1744284128683,1000.0,0.00018,10]
[357656934,1744284230275,-986.0,0.00015075,2]
[357656935,1744284230300,-205.903958,0.00015076,2]
[357656936,1744284230324,-154.596042,0.00015196,2]
[357656943,1744284478511,600.0,0.00025,120]
[357656944,1744284505508,600.0,0.00025,120]
[357656945,1744284527755,600.0,0.00025,120]
[357656946,1744284540790,600.0,0.00025,120]
[357656970,1744284581717,229.06,0.00025,120]
[357656980,1744284638173,-511.9005599,0.00015196,2]
[357656981,1744284638184,-332.31744159,0.00015782,2]
[357656982,1744284638194,-500.0,0.0001587,2]
[357656983,1744284638204,-500.0,0.0001587,2]
[357656984,1744284638214,-442.07873146,0.0001587,2]
[357656985,1744284638228,-151.90843175,0.0001587,2]
[357656986,1744284638237,-250.0,0.00015871,2]
[357656987,1744284638247,-2253.03337744,0.00015871,2]
[357656988,1744284638257,-270.95635736,0.00015872,2]
[357656989,1744284638268,-200.0,0.00015956,2]
[357656991,1744284638278,-300.0,0.00015964,2]
[357656993,1744284638289,-500.0,0.00015965,2]
[357656995,1744284638298,-319.82356696,0.00015966,2]
[357657191,1744284640343,-700.2151947,0.00015966,2]
[357657194,1744284640359,-540.14650353,0.00015966,2]
[357657462,1744284643093,-5559.05037223,0.00015966,2]
[357657464,1744284643106,-4867.2977,0.00015966,2]
[357657566,1744284646400,-652.8,0.00015966,2]
[357657567,1744284950934,424.94563894,0.00015,120]
[357657569,1744285267748,250.0,0.00014718,2]
[357657570,1744285490118,24900.0,0.00014686,2]
[357657593,1744285719231,1258.91143246,0.00025,120]
[357657594,1744285737937,300.009,0.00025,120]
[357657596,1744285832172,-472.8195707,0.00015013,2]
[357657597,1744285832184,-250.0,0.00015096,2]
[357657598,1744285832194,-180.19718695,0.0001566,2]
[357657599,1744285832204,-541.91271468,0.0001566,2]
[357657600,1744285832214,-267.081938,0.00015664,2]
[357657601,1744285832224,-180.19718695,0.00015729,2]
[357657602,1744285832234,-151.0,0.00015755,2]
[357657603,1744285832244,-300.0,0.00015759,2]
[357657604,1744285832254,-500.0,0.0001576,2]
[357657605,1744285832264,-500.0,0.0001576,2]
[357657606,1744285832274,-1158.62350152,0.0001576,2]
[357657607,1744285832287,-500.0,0.0001576,2]
[357657608,1744285832297,-179.77941715,0.0001576,2]
[357657609,1744285832307,-1158.62350152,0.0001576,2]
[357657610,1744285832317,-500.0,0.0001576,2]
[357657611,1744285832328,-500.0,0.0001576,2]
[357657612,1744285832338,-1158.62350152,0.0001576,2]
[357657613,1744285832348,-5.98163159,0.0001576,2]
[357657614,1744285832361,-494.01836841,0.0001576,2]
[357657615,1744285832371,-466.03746313,0.0001576,2]
[357657616,1744285832383,-451.79522765,0.0001576,2]
[357657617,1744285832394,-240.79081074,0.0001576,2]
[357657618,1744285832405,-1158.62350152,0.0001576,2]
[357657619,1744285832415,-500.0,0.0001576,2]
[357657620,1744285832425,-1158.62350152,0.0001576,2]
[357657621,1744285832435,-1158.62350152,0.0001576,2]
[357657622,1744285832445,-500.0,0.0001576,2]
[357657623,1744285832455,-1158.62350152,0.0001576,2]
[357657624,1744285832466,-500.0,0.0001576,2]
[357657625,1744285832476,-1158.62350152,0.0001576,2]
[357657626,1744285832486,-500.0,0.0001576,2]
[357657627,1744285832498,-1158.62350152,0.0001576,2]
[357657628,1744285832516,-1158.62350152,0.0001576,2]
[357657629,1744285832530,-500.0,0.0001576,2]
[357657630,1744285832540,-1158.62350152,0.0001576,2]
[357657631,1744285832550,-500.0,0.0001576,2]
[357657632,1744285832560,-1158.62350152,0.0001576,2]
[357657633,1744285832571,-500.0,0.0001576,2]
[357657634,1744285832581,-1158.62350152,0.0001576,2]
[357657635,1744285832595,-500.0,0.0001576,2]
[357657636,1744285832613,-1158.62350152,0.0001576,2]
[357657637,1744285832623,-1158.62350152,0.0001576,2]
[357657638,1744285832632,-1158.62350152,0.0001576,2]
[357657639,1744285832642,-500.0,0.0001576,2]
[357657640,1744285832653,-1158.62350152,0.0001576,2]
[357657641,1744285832663,-259.57374047,0.0001576,2]
[357657642,1744285832673,-1158.62350152,0.0001576,2]
[357657643,1744285832684,-500.0,0.0001576,2]
[357657644,1744285832694,-1158.62350152,0.0001576,2]
[357657645,1744285832704,-500.0,0.0001576,2]
[357657646,1744285832713,-1158.62350152,0.0001576,2]
[357657647,1744285832723,-1158.62350152,0.0001576,2]
[357657648,1744285832733,-500.0,0.0001576,2]
[357657649,1744285832743,-1158.62350152,0.0001576,2]
[357657650,1744285832752,-1158.62350152,0.0001576,2]
[357657651,1744285832762,-500.0,0.0001576,2]
[357657652,1744285832772,-1158.62350152,0.0001576,2]
[357657653,1744285832782,-1158.62350152,0.0001576,2]
[357657654,1744285832792,-1158.62350152,0.0001576,2]
[357657655,1744285832802,-1158.62350152,0.0001576,2]
[357657656,1744285832811,-1158.62350152,0.0001576,2]
[357657657,1744285832821,-1158.62350152,0.0001576,2]
[357657658,1744285832831,-1158.62350152,0.0001576,2]
[357657659,1744285832841,-1158.62350152,0.0001576,2]
[357657660,1744285832851,-1158.62350152,0.0001576,2]
[357657661,1744285832860,-1158.62350152,0.0001576,2]
[357657662,1744285832870,-1158.62350152,0.0001576,2]
[357657663,1744285832880,-1158.62350152,0.0001576,2]
[357657664,1744285832890,-1158.62350152,0.0001576,2]
[357657665,1744285832899,-1158.62350152,0.0001576,2]
[357657666,1744285833086,-1158.62350152,0.0001576,2]
[357657667,1744285833097,-1158.62350152,0.0001576,2]
[357657668,1744285833108,-1158.62350152,0.0001576,2]
[357657669,1744285833118,-1158.62350152,0.0001576,2]
[357657670,1744285833128,-1158.62350152,0.0001576,2]
[357657671,1744285833139,-1158.62350152,0.0001576,2]
[357657672,1744285833149,-1158.62350152,0.0001576,2]
[357657673,1744285833159,-1158.62350152,0.0001576,2]
[357657674,1744285833170,-1158.62350152,0.0001576,2]
[357657675,1744285833180,-1158.62350152,0.0001576,2]
[357657676,1744285833191,-1158.62350152,0.0001576,2]
[357657677,1744285833201,-1158.62350152,0.0001576,2]
[357657678,1744285833211,-1158.62350152,0.0001576,2]
[357657679,1744285833222,-1158.62350152,0.0001576,2]
[357657680,1744285833232,-1158.62350152,0.0001576,2]
[357657681,1744285833242,-500.0,0.0001576,2]
[357657682,1744285833251,-500.0,0.0001576,2]
[357657683,1744285833262,-500.0,0.0001576,2]
[357657684,1744285833272,-500.0,0.0001576,2]
[357657685,1744285833282,-336.16366419,0.0001576,2]
[357657686,1744285833293,-6508.9813139,0.0001576,2]
[357657687,1744285833303,-6508.9813139,0.0001576,2]
[357657688,1744285833313,-6508.9813139,0.0001576,2]
[357657689,1744285833322,-6508.9813139,0.0001576,2]
[357657690,1744285833332,-6508.9813139,0.0001576,2]
[357657691,1744285833342,-6508.9813139,0.0001576,2]
[357657692,1744285833352,-6508.9813139,0.0001576,2]
[357657693,1744285833362,-6508.9813139,0.0001576,2]
[357657694,1744285833372,-6508.9813139,0.0001576,2]
[357657695,1744285833382,-6508.9813139,0.0001576,2]
[357657696,1744285833392,-6508.9813139,0.0001576,2]
[357657697,1744285833402,-6508.9813139,0.0001576,2]
[357657698,1744285833411,-6508.9813139,0.0001576,2]
[357657699,1744285833421,-6508.9813139,0.0001576,2]
[357657700,1744285833431,-6508.9813139,0.0001576,2]
[357657701,1744285833441,-6508.9813139,0.0001576,2]
[357657702,1744285833451,-6508.9813139,0.0001576,2]
[357657703,1744285833461,-6508.9813139,0.0001576,2]
[357657704,1744285833471,-6508.9813139,0.0001576,2]
[357657705,1744285833481,-6508.9813139,0.0001576,2]
[357657706,1744285833491,-6508.9813139,0.0001576,2]
[357657707,1744285833501,-6508.9813139,0.0001576,2]
[357657708,1744285833511,-6508.9813139,0.0001576,2]
[357657709,1744285833521,-6508.9813139,0.0001576,2]
[357657710,1744285833530,-6508.9813139,0.0001576,2]
[357657711,1744285833540,-6508.9813139,0.0001576,2]
[357657712,1744285833550,-6508.9813139,0.0001576,2]
[357657713,1744285833560,-6508.9813139,0.0001576,2]
[357657714,1744285833570,-6508.9813139,0.0001576,2]
[357657715,1744285833580,-6508.9813139,0.0001576,2]
[357657716,1744285833589,-6508.98131391,0.0001576,2]
[357657717,1744285833602,-6508.98131391,0.0001576,2]
[357657718,1744285833611,-6508.98131391,0.0001576,2]
[357657719,1744285833622,-6508.98131391,0.0001576,2]
[357657720,1744285833631,-6508.98131391,0.0001576,2]
[357657721,1744285833642,-6508.98131391,0.0001576,2]
[357657722,1744285833653,-50000.0,0.00015762,2]
[357657723,1744285833663,-151.0,0.00015762,2]
[357657724,1744285833673,-151.0,0.00015762,2]
[357657725,1744285833683,-151.0,0.00015762,2]
[357657726,1744285833694,-151.0,0.00015762,2]
[357657727,1744285833704,-246.40491,0.00015762,2]
[357657728,1744285833714,-1756.392928,0.00015762,2]
[357657729,1744285833724,-1756.392928,0.00015762,2]
[357657730,1744285833735,-1756.392928,0.00015762,2]
[357657731,1744285833745,-1756.392928,0.00015762,2]
[357657732,1744285833754,-1756.392928,0.00015762,2]
[357657733,1744285833764,-1756.392928,0.00015762,2]
[357657734,1744285833774,-1756.392928,0.00015762,2]
[357657735,1744285833784,-1756.392928,0.00015762,2]
[357657736,1744285833794,-1756.392928,0.00015762,2]
[357657737,1744285833803,-1756.392928,0.00015762,2]
[357657738,1744285833813,-151.0,0.00015762,2]
[357657739,1744285833823,-151.0,0.00015762,2]
[357657740,1744285833833,-151.0,0.00015764,2]
[357657741,1744285833843,-151.0,0.00015764,2]
[357657742,1744285833854,-151.648432,0.00015764,2]
[357657743,1744285833864,-1319.645731,0.00015764,2]
[357657744,1744285833874,-1319.645731,0.00015764,2]
[357657745,1744285833885,-1319.645731,0.00015764,2]
[357657746,1744285833895,-1319.645731,0.00015764,2]
[357657747,1744285833905,-1319.645731,0.00015764,2]
[357657748,1744285833915,-1319.645731,0.00015764,2]
[357657749,1744285833925,-1319.645731,0.00015764,2]
[357657750,1744285833936,-1319.645731,0.00015764,2]
[357657751,1744285833946,-1319.645731,0.00015764,2]
[357657752,1744285833956,-1319.645731,0.00015764,2]
[357657753,1744285833966,-153.105098,0.00015764,2]
[357657754,1744285833976,-1756.392928,0.00015764,2]
[357657755,1744285833986,-1756.392928,0.00015764,2]
[357657756,1744285833996,-151.0,0.00015765,2]
[357657757,1744285834006,-276.99741,0.00015765,2]
[357657758,1744285834016,-151.0,0.00015765,2]
[357657759,1744285834027,-215.924982,0.00015765,2]
[357657760,1744285834037,-151.0,0.00015765,2]
[357657761,1744285834048,-151.0,0.00015765,2]
[357657762,1744285834058,-151.0,0.00015765,2]
[357657763,1744285834068,-151.0,0.00015765,2]
[357657764,1744285834078,-151.0,0.00015765,2]
[357657765,1744285834088,-151.0,0.00015765,2]
[357657766,1744285834098,-151.0,0.00015765,2]
[357657767,1744285834108,-173.469322,0.00015765,2]
[357657768,1744285834118,-179.487443,0.00015765,2]
[357657769,1744285834128,-179.487443,0.00015765,2]
[357657770,1744285834138,-179.487443,0.00015765,2]
[357657771,1744285834148,-179.487443,0.00015765,2]
[357657772,1744285834158,-179.487443,0.00015765,2]
[357657773,1744285834168,-179.487443,0.00015765,2]
[357657774,1744285834178,-179.487443,0.00015765,2]
[357657775,1744285834188,-179.487443,0.00015765,2]
[357657776,1744285834198,-179.487443,0.00015765,2]
[357657777,1744285834209,-179.487443,0.00015765,2]
[357657778,1744285834219,-153.635762,0.00015765,2]
[357657779,1744285834230,-151.0,0.00015765,2]
[357657780,1744285834240,-151.605951,0.00015765,2]
[357657781,1744285834250,-151.0,0.00015765,2]
[357657782,1744285834260,-151.0,0.00015765,2]
[357657783,1744285834270,-151.731806,0.00015765,2]
[357657784,1744285834280,-151.0,0.00015765,2]
[357657785,1744285834290,-151.0,0.00015765,2]
[357657786,1744285834300,-151.0,0.00015765,2]
[357657787,1744285834310,-151.0,0.00015765,2]
[357657788,1744285834320,-151.0,0.00015765,2]
[357657789,1744285834330,-151.0,0.00015765,2]
[357657790,1744285834341,-151.0,0.00015765,2]
[357657791,1744285834350,-151.0,0.00015765,2]
[357657792,1744285834361,-151.0,0.00015765,2]
[357657793,1744285834371,-151.0,0.00015765,2]
[357657794,1744285834381,-216.472371,0.00015765,2]
[357657795,1744285834391,-151.0,0.00015766,2]
[357657796,1744285834400,-151.0,0.00015766,2]
[357657797,1744285834410,-151.0,0.00015766,2]
[357657798,1744285834420,-151.0,0.00015766,2]
[357657799,1744285834431,-151.0,0.00015766,2]
[357657800,1744285834440,-151.0,0.00015766,2]
[357657801,1744285834450,-151.0,0.00015766,2]
[357657802,1744285834461,-151.0,0.00015766,2]
[357657803,1744285834471,-151.0,0.00015766,2]
[357657804,1744285834481,-151.0,0.00015766,2]
[357657805,1744285834491,-151.0,0.00015766,2]
[357657806,1744285834501,-151.0,0.00015766,2]
[357657807,1744285834512,-151.0,0.00015766,2]
[357657808,1744285834523,-175.885012,0.00015766,2]
[357657809,1744285834533,-151.0,0.00015766,2]
[357657810,1744285834542,-179.487443,0.00015766,2]
[357657811,1744285834553,-179.487443,0.00015766,2]
[357657812,1744285834564,-1319.645731,0.00015766,2]
[357657813,1744285834574,-1319.645731,0.00015766,2]
[357657814,1744285834584,-151.0,0.00015766,2]
[357657815,1744285834595,-151.0,0.00015766,2]
[357657816,1744285834609,-151.0,0.00015766,2]
[357657817,1744285834620,-151.0,0.00015766,2]
[357657818,1744285834630,-1756.392928,0.00015766,2]
[357657819,1744285834640,-1756.392928,0.00015766,2]
[357657820,1744285834652,-151.0,0.00015767,2]
[357657821,1744285834662,-151.0,0.00015767,2]
[357657822,1744285834672,-145.83856052,0.00015767,2]
[357657836,1744285838360,-5.16143948,0.00015767,2]
[357657838,1744285838372,-151.0,0.00015767,2]
[357657840,1744285838383,-151.0,0.00015767,2]
[357657842,1744285838394,-151.0,0.00015767,2]
[357657844,1744285838405,-151.0,0.00015767,2]
[357657846,1744285838416,-151.0,0.00015767,2]
[357657848,1744285838426,-134.94175235,0.00015767,2]
[357657850,1744285838439,-16.05824765,0.00015767,2]
[357657852,1744285838450,-151.0,0.00015767,2]
[357657855,1744285838460,-260.11245,0.00015767,2]
[357657857,1744285838477,-7.64300683,0.00015767,2]
[357657860,1744285838501,-143.35699317,0.00015767,2]
[357657862,1744285838511,-151.0,0.00015767,2]
[357657864,1744285838522,-275.513016,0.00015767,2]
[357657866,1744285838532,-124.32999083,0.00015767,2]
[357658225,1744285843817,-2000.0,0.000152,2]
[357658227,1744285843827,-672.937972,0.00015762,2]
[357658229,1744285843838,-672.937972,0.00015762,2]
[357658230,1744285843852,-672.937972,0.00015762,2]
[357658231,1744285843862,-1195.31574017,0.00015767,2]
[357658232,1744285843872,-1319.645731,0.00015767,2]
[357658233,1744285843881,-151.0,0.00015768,2]
[357658234,1744285843891,-156.52171,0.00015768,2]
[357658235,1744285843901,-151.0,0.00015768,2]
[357658236,1744285843910,-151.0,0.00015768,2]
[357658237,1744285843921,-151.0,0.00015768,2]
[357658238,1744285843930,-151.0,0.00015768,2]
[357658239,1744285843940,-151.0,0.00015768,2]
[357658240,1744285843949,-151.0,0.00015768,2]
[357658241,1744285843959,-192.053869,0.00015768,2]
[357658242,1744285843969,-151.0,0.00015769,2]
[357658243,1744285843978,-151.0,0.00015769,2]
[357658244,1744285843988,-151.0,0.00015769,2]
[357658245,1744285843998,-151.0,0.00015769,2]
[357658246,1744285844007,-151.0,0.00015769,2]
[357658247,1744285844017,-179.487443,0.00015769,2]
[357658248,1744285844027,-179.487443,0.00015769,2]
[357658249,1744285844037,-179.487443,0.00015769,2]
[357658250,1744285844046,-179.487443,0.00015769,2]
[357658251,1744285844056,-1319.645731,0.00015769,2]
[357658252,1744285844066,-151.0,0.00015769,2]
[357658253,1744285844075,-1319.645731,0.00015769,2]
[357658254,1744285844085,-151.0,0.00015769,2]
[357658255,1744285844094,-151.0,0.00015769,2]
[357658256,1744285844104,-1756.392928,0.00015769,2]
[357658257,1744285844114,-1756.392928,0.00015769,2]
[357658258,1744285844123,-15899.37652844,0.00015769,2]
[357658392,1744285846718,-672.937972,0.00015762,2]
[357658393,1744285846727,-672.937972,0.00015762,2]
[357658394,1744285846738,-672.937972,0.00015764,2]
[357658395,1744285846747,-672.937972,0.00015764,2]
[357658396,1744285846756,-672.937972,0.00015766,2]
[357658397,1744285846766,-672.937972,0.00015769,2]
[357658398,1744285846775,-20862.372168,0.00015769,2]
[357658434,1744285899858,250.0,0.00014913,2]
[357658437,1744285920411,6483.4672715,0.00014763,2]
[357658438,1744285983817,298.5008966,0.00014884,2]
[357658439,1744286122297,190.954934,0.00014759,2]
[357658440,1744286214558,2000.0,0.00015,2]
[357658441,1744286235455,628.6741872,0.00014709,2]
[357658443,1744286518653,24900.0,0.00014588,2]
[357658445,1744286819625,268.230746,0.0001456,2]
[357658472,1744287032425,1679.9622999,0.0001456,2]
[357658507,1744287038633,-592.61661624,0.00015429,2]
[357658509,1744287038642,-1186.78596939,0.00015457,2]